fUST/lending_fUST_20250302
["ID","MTS","AMOUNT","RATE_DAILY","PERIOD"]
[355061831,1740886242557,-500.0,0.00023638,2]
[355061833,1740886242567,-695.69,0.00023638,2]
[355061835,1740886242577,-500.0,0.00023638,2]
[355061837,1740886242588,-500.0,0.00023638,2]
[355061839,1740886242597,-500.0,0.00023638,2]
[355061841,1740886242607,-500.0,0.00023638,2]
[355061843,1740886242617,-500.0,0.00023638,2]
[355061845,1740886242628,-500.0,0.00023638,2]
[355061847,1740886242638,-500.0,0.00023638,2]
[355061849,1740886242648,-500.0,0.00023638,2]
[355061851,1740886242657,-1314.21,0.00023638,2]
[355061853,1740886242667,-500.0,0.00023638,2]
[355061855,1740886242677,-500.0,0.00023638,2]
[355061857,1740886242686,-500.0,0.00023638,2]
[355061859,1740886242696,-501.95564159,0.00023638,2]
[355061862,1740886242705,-500.0,0.00023638,2]
[355061863,1740886242715,-500.0,0.00023638,2]
[355061865,1740886242725,-500.0,0.00023638,2]
[355061868,1740886242735,-504.92016221,0.00023638,2]
[355061869,1740886242744,-500.0,0.00023638,2]
[355061870,1740886242755,-500.0,0.00023638,2]
[355061871,1740886242765,-350.93559004,0.00023638,2]
[355061872,1740886242775,-500.0,0.00023638,2]
[355061873,1740886242784,-614.99,0.00023638,2]
[355061874,1740886242794,-1289.22,0.00023638,2]
[355061875,1740886242804,-598.14,0.00023638,2]
[355061876,1740886242814,-501.87631165,0.00023638,2]
[355061877,1740886242824,-2226.86,0.00023638,2]
[355061878,1740886242834,-500.0,0.00023638,2]
[355061879,1740886242844,-500.0,0.00023638,2]
[355061880,1740886242853,-500.0,0.00023638,2]
[355061882,1740886242864,-2581.24,0.00023638,2]
[355061884,1740886242874,-500.0,0.00023638,2]
[355061886,1740886242884,-1739.44,0.00023638,2]
[355061888,1740886242894,-500.0,0.00023638,2]
[355061890,1740886242904,-500.0,0.00023638,2]
[355061891,1740886242914,-1169.44,0.00023638,2]
[355061893,1740886242924,-500.0,0.00023638,2]
[355061894,1740886242933,-500.0,0.00023638,2]
[355061896,1740886242943,-756.25,0.00023638,2]
[355061898,1740886242953,-500.0,0.00023638,2]
[355061901,1740886242963,-1204.9,0.00023638,2]
[355061903,1740886242974,-500.0,0.00023638,2]
[355061905,1740886242984,-1004.4,0.00023638,2]
[355061907,1740886242994,-4788.78,0.00023638,2]
[355061909,1740886243004,-531.68,0.00023638,2]
[355061911,1740886243014,-500.0,0.00023638,2]
[355061914,1740886243024,-3299.15,0.00023638,2]
[355061917,1740886243034,-191.98094613,0.00023638,2]
[355061919,1740886243045,-500.0,0.00023638,2]
[355061921,1740886243055,-500.0,0.00023638,2]
[355061923,1740886243066,-3768.09,0.00023638,2]
[355061966,1740886243262,-1428.31,0.00023638,2]
[355061970,1740886243300,-500.0,0.00023638,2]
[355061973,1740886243311,-500.0,0.00023638,2]
[355061974,1740886243321,-851.2,0.00023638,2]
[355061978,1740886243331,-500.0,0.00023638,2]
[355061979,1740886243341,-500.0,0.00023638,2]
[355061981,1740886243351,-500.0,0.00023638,2]
[355061983,1740886243362,-500.0,0.00023638,2]
[355061985,1740886243372,-500.0,0.00023638,2]
[355061988,1740886243381,-500.0,0.00023638,2]
[355061989,1740886243391,-500.0,0.00023638,2]
[355061991,1740886243400,-440.50057293,0.00023638,2]
[355061993,1740886243410,-282.10543632,0.00023638,2]
[355061995,1740886243419,-2684.0,0.00023638,2]
[355061997,1740886243429,-4323.02,0.00023638,2]
[355061999,1740886243439,-500.0,0.00023638,2]
[355062001,1740886243449,-782.1,0.00023638,2]
[355062003,1740886243459,-590.63,0.00023638,2]
[355062005,1740886243469,-1784.14,0.00023638,2]
[355062007,1740886243479,-502.63730038,0.00023638,2]
[355062009,1740886243488,-1315.96,0.00023638,2]
[355062010,1740886243498,-659.17,0.00023638,2]
[355062012,1740886243507,-500.0,0.00023638,2]
[355062014,1740886243517,-500.0,0.00023638,2]
[355062016,1740886243527,-1228.88,0.00023638,2]
[355062018,1740886243537,-666.93,0.00023638,2]
[355062020,1740886243547,-500.0,0.00023638,2]
[355062022,1740886243557,-1449.12,0.00023638,2]
[355062024,1740886243566,-500.0,0.00023638,2]
[355062026,1740886243576,-505.18,0.00023638,2]
[355062028,1740886243586,-500.0,0.00023638,2]
[355062030,1740886243595,-1090.34,0.00023638,2]
[355062032,1740886243605,-500.0,0.00023638,2]
[355062034,1740886243614,-2634.31,0.00023638,2]
[355062036,1740886243624,-500.0,0.00023638,2]
[355062038,1740886243634,-500.0,0.00023638,2]
[355062040,1740886243644,-500.0,0.00023638,2]
[355062042,1740886243655,-569.32,0.00023638,2]
[355062044,1740886243665,-6333.26,0.00023638,2]
[355062046,1740886243674,-500.0,0.00023638,2]
[355062048,1740886243684,-500.0,0.00023638,2]
[355062050,1740886243694,-500.0,0.00023638,2]
[355062052,1740886243703,-500.0,0.00023638,2]
[355062054,1740886243714,-500.0,0.00023638,2]
[355062056,1740886243723,-500.0,0.00023638,2]
[355062058,1740886243733,-500.0,0.00023638,2]
[355062060,1740886243743,-500.0,0.00023638,2]
[355062061,1740886243752,-500.0,0.00023638,2]
[355062063,1740886243761,-1915.38,0.00023638,2]
[355062065,1740886243771,-508.35179859,0.00023639,2]
[355062067,1740886243780,-503.32981357,0.00023639,2]
[355062069,1740886243790,-614.06757956,0.00023639,2]
[355062071,1740886243800,-503.56992451,0.00023639,2]
[355062073,1740886243810,-500.0,0.00023639,2]
[355062075,1740886243820,-888.08,0.00023639,2]
[355062078,1740886243830,-500.0,0.00023639,2]
[355062081,1740886243839,-500.0,0.00023639,2]
[355062084,1740886243849,-500.0,0.00023639,2]
[355062086,1740886243859,-500.0,0.00023639,2]
[355062088,1740886243868,-504.52940642,0.00023639,2]
[355062090,1740886243878,-500.0,0.00023639,2]
[355062092,1740886243887,-559.14246055,0.00023639,2]
[355062094,1740886243897,-500.0,0.00023639,2]
[355062096,1740886243906,-500.0,0.00023639,2]
[355062098,1740886243916,-500.0,0.00023639,2]
[355062100,1740886243925,-500.0,0.00023639,2]
[355062102,1740886243935,-500.0,0.00023639,2]
[355062104,1740886243944,-500.0,0.00023639,2]
[355062106,1740886243954,-500.89030167,0.00023639,2]
[355062108,1740886243963,-500.0,0.00023639,2]
[355062110,1740886243973,-500.0,0.00023639,2]
[355062112,1740886243983,-500.51,0.00023639,2]
[355062114,1740886243992,-501.05757469,0.00023639,2]
[355062116,1740886244002,-500.0,0.00023639,2]
[355062118,1740886244011,-500.0,0.00023639,2]
[355062119,1740886244020,-500.0,0.00023639,2]
[355062121,1740886244030,-500.25102903,0.00023639,2]
[355062123,1740886244040,-500.0,0.00023639,2]
[355062125,1740886244050,-510.2475233,0.00023639,2]
[355062127,1740886244059,-500.0,0.00023639,2]
[355062129,1740886244069,-500.25046702,0.00023639,2]
[355062131,1740886244078,-500.0,0.00023639,2]
[355062133,1740886244089,-500.0,0.00023639,2]
[355062135,1740886244098,-500.0,0.00023639,2]
[355062137,1740886244108,-500.0,0.00023639,2]
[355062139,1740886244117,-500.0,0.00023639,2]
[355062141,1740886244127,-500.0,0.00023639,2]
[355062143,1740886244136,-506.20294614,0.00023639,2]
[355062145,1740886244146,-591.09,0.00023639,2]
[355062147,1740886244156,-896.52,0.00023639,2]
[355062149,1740886244165,-522.93880167,0.00023639,2]
[355062151,1740886244174,-500.0,0.00023639,2]
[355062153,1740886244184,-500.0,0.00023639,2]
[355062155,1740886244194,-553.7,0.00023639,2]
[355062157,1740886244205,-500.0,0.00023639,2]
[355062159,1740886244214,-534.7965296,0.00023639,2]
[355062161,1740886244225,-524.51,0.00023639,2]
[355062163,1740886244237,-500.0,0.00023639,2]
[355062165,1740886244246,-500.0,0.00023639,2]
[355062167,1740886244255,-500.0,0.00023639,2]
[355062169,1740886244267,-500.0,0.00023639,2]
[355062171,1740886244276,-3662.18,0.00023639,2]
[355062173,1740886244286,-3662.18,0.00023639,2]
[355062175,1740886244295,-503.35814536,0.00023639,2]
[355062177,1740886244306,-500.0,0.00023639,2]
[355062179,1740886244316,-3662.18,0.00023639,2]
[355062181,1740886244325,-3662.18,0.00023639,2]
[355062183,1740886244334,-3662.18,0.00023639,2]
[355062185,1740886244344,-3662.18,0.00023639,2]
[355062187,1740886244354,-3662.18,0.00023639,2]
[355062189,1740886244364,-3662.18,0.00023639,2]
[355062191,1740886244374,-3662.18,0.00023639,2]
[355062193,1740886244384,-3662.18,0.00023639,2]
[355062195,1740886244394,-3662.18,0.00023639,2]
[355062197,1740886244404,-1474.58,0.00023639,2]
[355062199,1740886244414,-500.0,0.00023639,2]
[355062201,1740886244423,-500.0,0.00023639,2]
[355062203,1740886244433,-500.0,0.00023639,2]
[355062205,1740886244443,-500.0,0.00023639,2]
[355062206,1740886244453,-500.0,0.00023639,2]
[355062208,1740886244463,-500.0,0.00023639,2]
[355062210,1740886244473,-508.18514725,0.00023639,2]
[355062212,1740886244483,-403.3470449,0.00023639,2]
[355062214,1740886244492,-500.0,0.00023639,2]
[355062216,1740886244502,-687.64,0.00023639,2]
[355062218,1740886244512,-525.67125928,0.00023639,2]
[355062220,1740886244522,-521.17,0.00023639,2]
[355062222,1740886244532,-928.01,0.00023639,2]
[355062224,1740886244542,-305.01647462,0.00023639,2]
[355062226,1740886244552,-500.0,0.00023639,2]
[355062228,1740886244562,-500.0,0.00023639,2]
[355062230,1740886244572,-500.0,0.00023639,2]
[355062232,1740886244583,-1000.0,0.00023639,2]
[355062234,1740886244592,-500.0,0.00023639,2]
[355062236,1740886244602,-500.0,0.00023639,2]
[355062238,1740886244611,-500.0,0.00023639,2]
[355062240,1740886244621,-500.0,0.00023639,2]
[355062242,1740886244631,-500.0,0.00023639,2]
[355062244,1740886244641,-500.0,0.00023639,2]
[355062246,1740886244651,-500.0,0.00023639,2]
[355062248,1740886244661,-500.6264217,0.00023639,2]
[355062250,1740886244671,-502.74177431,0.00023639,2]
[355062252,1740886244680,-500.0,0.00023639,2]
[355062254,1740886244690,-500.0,0.00023639,2]
[355062256,1740886244699,-357.21705909,0.00023639,2]
[355062258,1740886244709,-500.0,0.00023639,2]
[355062260,1740886244719,-500.0,0.00023639,2]
[355062262,1740886244728,-500.0,0.00023639,2]
[355062264,1740886244737,-513.43880016,0.00023639,2]
[355062266,1740886244748,-500.0,0.00023639,2]
[355062268,1740886244757,-500.0,0.00023639,2]
[355062270,1740886244767,-500.0,0.00023639,2]
[355062272,1740886244776,-500.0,0.00023639,2]
[355062274,1740886244785,-500.0,0.00023639,2]
[355062276,1740886244795,-500.0,0.00023639,2]
[355062278,1740886244805,-583.22,0.00023639,2]
[355062280,1740886244816,-503.86199769,0.00023639,2]
[355062282,1740886244825,-500.0,0.00023639,2]
[355062284,1740886244835,-500.0,0.00023639,2]
[355062286,1740886244845,-500.0,0.00023639,2]
[355062288,1740886244855,-500.0,0.00023639,2]
[355062289,1740886244864,-500.0,0.00023639,2]
[355062290,1740886244874,-500.0,0.00023639,2]
[355062291,1740886244883,-500.0,0.00023639,2]
[355062292,1740886244893,-500.0,0.00023639,2]
[355062293,1740886244903,-500.0,0.00023639,2]
[355062294,1740886244912,-500.0,0.00023639,2]
[355062295,1740886244921,-500.0,0.00023639,2]
[355062296,1740886244932,-529.90443607,0.00023639,2]
[355062297,1740886244941,-632.47751573,0.00023639,2]
[355062298,1740886244951,-500.0,0.00023639,2]
[355062299,1740886244960,-267.45589104,0.00023639,2]
[355062300,1740886244970,-510.31263693,0.00023639,2]
[355062301,1740886244979,-500.0,0.00023639,2]
[355062303,1740886244989,-500.0,0.00023639,2]
[355062304,1740886244999,-500.0,0.00023639,2]
[355062306,1740886245008,-500.0,0.00023639,2]
[355062308,1740886245018,-500.0,0.00023639,2]
[355062311,1740886245028,-500.0,0.00023639,2]
[355062313,1740886245037,-500.0,0.00023639,2]
[355062315,1740886245047,-500.0,0.00023639,2]
[355062316,1740886245057,-500.0,0.00023639,2]
[355062318,1740886245066,-500.0,0.00023639,2]
[355062320,1740886245076,-500.0,0.00023639,2]
[355062322,1740886245087,-500.0,0.00023639,2]
[355062324,1740886245097,-500.0,0.00023639,2]
[355062327,1740886245108,-500.0,0.00023639,2]
[355062329,1740886245118,-500.0,0.00023639,2]
[355062331,1740886245127,-500.0,0.00023639,2]
[355062333,1740886245137,-500.0,0.00023639,2]
[355062335,1740886245146,-821.72,0.00023639,2]
[355062337,1740886245156,-500.0,0.00023639,2]
[355062339,1740886245165,-500.0,0.00023639,2]
[355062341,1740886245175,-500.0,0.00023639,2]
[355062343,1740886245185,-703.97,0.00023639,2]
[355062345,1740886245194,-500.0,0.00023639,2]
[355062347,1740886245203,-646.1,0.00023639,2]
[355062349,1740886245213,-1413.57,0.00023639,2]
[355062351,1740886245225,-512.222438,0.00023639,2]
[355062353,1740886245236,-500.0,0.00023639,2]
[355062355,1740886245246,-548.28,0.00023639,2]
[355062357,1740886245255,-1102.8,0.00023639,2]
[355062359,1740886245265,-500.0,0.00023639,2]
[355062361,1740886245275,-500.0,0.00023639,2]
[355062363,1740886245285,-500.0,0.00023639,2]
[355062365,1740886245296,-500.0,0.00023639,2]
[355062367,1740886245306,-500.0,0.00023639,2]
[355062369,1740886245315,-500.0,0.00023639,2]
[355062371,1740886245325,-694.6,0.00023639,2]
[355062373,1740886245334,-500.0,0.00023639,2]
[355062375,1740886245344,-500.0,0.00023639,2]
[355062377,1740886245353,-501.42066931,0.00023639,2]
[355062379,1740886245363,-510.8775791,0.00023639,2]
[355062381,1740886245373,-500.0,0.00023639,2]
[355062383,1740886245382,-540.61,0.00023639,2]
[355062385,1740886245391,-500.0,0.00023639,2]
[355062387,1740886245402,-500.0,0.00023639,2]
[355062389,1740886245411,-500.0,0.00023639,2]
[355062391,1740886245421,-500.0,0.00023639,2]
[355062393,1740886245431,-623.08,0.00023639,2]
[355062395,1740886245441,-1137.28,0.00023639,2]
[355062397,1740886245451,-1017.35,0.00023639,2]
[355062399,1740886245461,-500.0,0.00023639,2]
[355062401,1740886245470,-500.0,0.00023639,2]
[355062403,1740886245480,-504.32877017,0.00023639,2]
[355062405,1740886245489,-500.0,0.00023639,2]
[355062407,1740886245499,-502.45105904,0.00023639,2]
[355062409,1740886245508,-501.06919943,0.00023639,2]
[355062411,1740886245518,-1330.22,0.00023639,2]
[355062413,1740886245527,-500.0,0.00023639,2]
[355062415,1740886245538,-500.0,0.00023639,2]
[355062417,1740886245548,-500.0,0.00023639,2]
[355062419,1740886245558,-573.90842833,0.00023639,2]
[355062421,1740886245569,-500.0,0.00023639,2]
[355062424,1740886245579,-500.0,0.00023639,2]
[355062426,1740886245588,-500.7047641,0.00023639,2]
[355062428,1740886245598,-500.0,0.00023639,2]
[355062438,1740886245689,-500.0,0.00023639,2]
[355062440,1740886245700,-500.0,0.00023639,2]
[355062442,1740886245709,-500.0,0.00023639,2]
[355062444,1740886245718,-500.0,0.00023639,2]
[355062446,1740886245727,-500.7592731,0.00023639,2]
[355062448,1740886245737,-500.0,0.00023639,2]
[355062450,1740886245746,-500.0,0.00023639,2]
[355062452,1740886245755,-500.0,0.00023639,2]
[355062454,1740886245764,-500.0,0.00023639,2]
[355062456,1740886245774,-500.18864872,0.00023639,2]
[355062458,1740886245783,-500.0,0.00023639,2]
[355062460,1740886245792,-500.0,0.00023639,2]
[355062462,1740886245802,-1066.57,0.00023639,2]
[355062464,1740886245811,-500.0,0.00023639,2]
[355062466,1740886245821,-500.0,0.00023639,2]
[355062468,1740886245831,-503.01396001,0.00023639,2]
[355062470,1740886245841,-500.0,0.00023639,2]
[355062472,1740886245850,-2368.56,0.00023639,2]
[355062474,1740886245860,-1359.76,0.00023639,2]
[355062476,1740886245869,-500.0,0.00023639,2]
[355062478,1740886245878,-260.59788216,0.00023673,2]
[355062480,1740886245887,-500.0,0.00023673,2]
[355062482,1740886245896,-500.0,0.00023673,2]
[355062484,1740886245905,-500.0,0.00023673,2]
[355062486,1740886245914,-268.7427686,0.00023673,2]
[355062488,1740886245924,-192.85154428,0.00023673,2]
[355062490,1740886245933,-500.0,0.00023673,2]
[355062492,1740886245942,-500.0,0.00023673,2]
[355062494,1740886245951,-500.0,0.00023789,2]
[355062496,1740886245961,-13513.14,0.0002379,2]
[355062498,1740886245970,-500.0,0.0002379,2]
[355062499,1740886245979,-7624.93,0.0002379,2]
[355062501,1740886245988,-2961.69,0.0002379,2]
[355062503,1740886245997,-296.5625281,0.0002379,2]
[355062505,1740886246008,-2330.23,0.0002379,2]
[355062507,1740886246017,-2306.22,0.0002379,2]
[355062510,1740886246027,-500.0,0.0002379,2]
[355062511,1740886246037,-500.0,0.0002379,2]
[355062513,1740886246047,-500.0,0.0002379,2]
[355062515,1740886246058,-500.0,0.0002379,2]
[355062517,1740886246068,-500.0,0.0002379,2]
[355062519,1740886246077,-500.0,0.00023802,2]
[355062521,1740886246086,-500.0,0.00023802,2]
[355062523,1740886246095,-632.19,0.00023802,2]
[355062525,1740886246105,-500.0,0.00023802,2]
[355062527,1740886246115,-2053.23,0.00023802,2]
[355062529,1740886246124,-500.0,0.00023802,2]
[355062531,1740886246134,-1289.53,0.00023802,2]
[355062533,1740886246143,-500.0,0.00023802,2]
[355062535,1740886246153,-500.0,0.00023802,2]
[355062537,1740886246162,-542.79,0.00023802,2]
[355062539,1740886246173,-500.0,0.00023802,2]
[355062541,1740886246182,-500.0,0.00023802,2]
[355062544,1740886246191,-729.52,0.00023802,2]
[355062548,1740886246200,-2911.18,0.00023802,2]
[355062552,1740886246209,-543.53,0.00023802,2]
[355062555,1740886246219,-1263.1,0.00023802,2]
[355062557,1740886246232,-500.0,0.00023802,2]
[355062559,1740886246241,-500.0,0.00023802,2]
[355062561,1740886246250,-2931.73,0.00023802,2]
[355062563,1740886246260,-500.0,0.00023802,2]
[355062565,1740886246271,-500.0,0.00023802,2]
[355062567,1740886246280,-1979.56,0.00023802,2]
[355062569,1740886246289,-500.0,0.00023802,2]
[355062571,1740886246299,-1000.0,0.00023802,2]
[355062573,1740886246314,-523.18,0.00023802,2]
[355062575,1740886246324,-500.0,0.00023802,2]
[355062577,1740886246333,-500.0,0.00023802,2]
[355062579,1740886246343,-2314.06,0.00023802,2]
[355062581,1740886246352,-504.72415878,0.00023802,2]
[355062583,1740886246362,-2260.58,0.00023802,2]
[355062585,1740886246371,-500.0,0.00023802,2]
[355062587,1740886246380,-828.38,0.00023802,2]
[355062589,1740886246389,-500.0,0.00023802,2]
[355062591,1740886246400,-2081.84,0.00023802,2]
[355062593,1740886246409,-1076.19,0.00023802,2]
[355062595,1740886246418,-508.73521276,0.00023802,2]
[355062597,1740886246427,-500.0,0.00023802,2]
[355062599,1740886246436,-1339.9,0.00023802,2]
[355062601,1740886246445,-500.0,0.00023802,2]
[355062603,1740886246455,-505.18301961,0.00023802,2]
[355062604,1740886246464,-500.0,0.00023802,2]
[355062607,1740886246474,-500.0,0.00023802,2]
[355062608,1740886246483,-3469.31,0.00023802,2]
[355062610,1740886246492,-500.0,0.00023802,2]
[355062612,1740886246501,-1990.46,0.00023802,2]
[355062614,1740886246511,-971.07,0.00023802,2]
[355062616,1740886246521,-1249.98,0.00023802,2]
[355062618,1740886246531,-2179.06,0.00023802,2]
[355062620,1740886246541,-500.0,0.00023802,2]
[355062622,1740886246550,-1012.24,0.00023802,2]
[355062624,1740886246559,-3060.91,0.00023802,2]
[355062626,1740886246568,-559.99,0.00023802,2]
[355062628,1740886246577,-615.9,0.00023802,2]
[355062630,1740886246587,-1996.5,0.00023802,2]
[355062632,1740886246596,-500.0,0.00023802,2]
[355062634,1740886246605,-4060.12,0.00023802,2]
[355062636,1740886246614,-10606.09,0.00023802,2]
[355062638,1740886246623,-2799.89,0.00023802,2]
[355062640,1740886246632,-1333.19,0.00023802,2]
[355062642,1740886246642,-719.18,0.00023802,2]
[355062644,1740886246651,-500.0,0.00023802,2]
[355062646,1740886246660,-509.46529369,0.00023802,2]
[355062648,1740886246669,-835.72,0.00023802,2]
[355062650,1740886246678,-1367.07,0.00023802,2]
[355062652,1740886246688,-500.0,0.00023802,2]
[355062654,1740886246697,-500.0,0.00023802,2]
[355062656,1740886246706,-2939.4,0.00023802,2]
[355062658,1740886246716,-500.0,0.00023802,2]
[355062660,1740886246724,-1214.18,0.00023802,2]
[355062662,1740886246733,-500.0,0.00023802,2]
[355062663,1740886246742,-4481.86,0.00023802,2]
[355062664,1740886246751,-548.69,0.00023802,2]
[355062665,1740886246761,-659.46,0.00023802,2]
[355062666,1740886246770,-500.0,0.00023802,2]
[355062667,1740886246778,-4158.95,0.00023802,2]
[355062668,1740886246787,-500.0,0.00023802,2]
[355062669,1740886246796,-848.25,0.00023802,2]
[355062670,1740886246806,-500.0,0.00023802,2]
[355062671,1740886246815,-25489.85,0.00023802,2]
[355062672,1740886246823,-500.0,0.00023802,2]
[355062673,1740886246832,-1593.02,0.00023802,2]
[355062674,1740886246842,-3140.53,0.00023802,2]
[355062675,1740886246851,-500.0,0.00023802,2]
[355062676,1740886246861,-500.0,0.00023802,2]
[355062677,1740886246870,-500.0,0.00023802,2]
[355062678,1740886246881,-716.21,0.00023802,2]
[355062679,1740886246890,-500.0,0.00023802,2]
[355062680,1740886246899,-500.0,0.00023802,2]
[355062681,1740886246908,-4639.3,0.00023802,2]
[355062683,1740886246917,-500.0,0.00023802,2]
[355062685,1740886246926,-14182.49,0.00023802,2]
[355062687,1740886246935,-500.0,0.00023802,2]
[355062689,1740886246945,-1188.6,0.00023802,2]
[355062691,1740886246954,-592.63,0.00023802,2]
[355062693,1740886246963,-1643.74,0.00023802,2]
[355062695,1740886246972,-12307.96,0.00023802,2]
[355062697,1740886246981,-500.0,0.00023802,2]
[355062698,1740886246997,-1368.42,0.00023802,2]
[355062700,1740886247006,-669.91,0.00023802,2]
[355062702,1740886247015,-500.0,0.00023802,2]
[355062704,1740886247025,-528.49614953,0.00023802,2]
[355062706,1740886247034,-3975.37,0.00023802,2]
[355062708,1740886247043,-501.67,0.00023802,2]
[355062710,1740886247053,-1802.14,0.00023802,2]
[355062712,1740886247063,-962.58,0.00023802,2]
[355062714,1740886247073,-20055.8,0.00023802,2]
[355062716,1740886247083,-789.66,0.00023802,2]
[355062718,1740886247092,-1159.12,0.00023802,2]
[355062720,1740886247103,-2419.35,0.00023802,2]
[355062722,1740886247112,-4017.73,0.00023802,2]
[355062724,1740886247121,-500.0,0.00023802,2]
[355062726,1740886247131,-500.0,0.00023802,2]
[355062728,1740886247140,-2550.68,0.00023802,2]
[355062730,1740886247151,-1400.73,0.00023802,2]
[355062732,1740886247160,-596.32,0.00023802,2]
[355062734,1740886247169,-718.57,0.00023802,2]
[355062736,1740886247180,-500.0,0.00023802,2]
[355062738,1740886247190,-1849.98,0.00023802,2]
[355062740,1740886247200,-18199.11,0.00023802,2]
[355062743,1740886247210,-500.0,0.00023802,2]
[355062745,1740886247220,-500.0,0.00023802,2]
[355062747,1740886247235,-6307.07,0.00023802,2]
[355062749,1740886247244,-500.0,0.00023802,2]
[355062750,1740886247254,-500.0,0.00023802,2]
[355062752,1740886247264,-3500.41,0.00023802,2]
[355062754,1740886247275,-500.0,0.00023802,2]
[355062756,1740886247285,-740.47,0.00023802,2]
[355062758,1740886247295,-500.0,0.00023802,2]
[355062760,1740886247308,-1093.67,0.00023802,2]
[355062762,1740886247318,-11719.04,0.00023802,2]
[355062764,1740886247328,-2757.89,0.00023802,2]
[355062766,1740886247338,-500.0,0.00023802,2]
[355062768,1740886247347,-500.0,0.00023802,2]
[355062770,1740886247357,-1586.33,0.00023802,2]
[355062772,1740886247367,-500.0,0.00023802,2]
[355062774,1740886247377,-23789.19,0.00023802,2]
[355062776,1740886247387,-1230.43,0.00023802,2]
[355062778,1740886247397,-500.0,0.00023802,2]
[355062780,1740886247407,-500.0,0.00023802,2]
[355062782,1740886247417,-500.0,0.00023802,2]
[355062784,1740886247428,-500.0,0.00023802,2]
[355062787,1740886247439,-3144.58,0.00023802,2]
[355062789,1740886247449,-500.0,0.00023802,2]
[355062790,1740886247459,-500.0,0.00023802,2]
[355062792,1740886247469,-500.0,0.00023802,2]
[355062794,1740886247479,-733.81,0.00023802,2]
[355062796,1740886247490,-500.0,0.00023803,2]
[355062798,1740886247500,-500.0,0.00023803,2]
[355062801,1740886247510,-502.60772376,0.00023803,2]
[355062803,1740886247520,-500.0,0.00023803,2]
[355062805,1740886247531,-500.0,0.00023803,2]
[355062807,1740886247540,-500.0,0.00023803,2]
[355062808,1740886247551,-526.15,0.00023803,2]
[355062811,1740886247562,-500.0,0.00023803,2]
[355062813,1740886247572,-275.79247018,0.00023803,2]
[355062815,1740886247584,-504.62249416,0.00023803,2]
[355062817,1740886247595,-1168.03,0.00023803,2]
[355062819,1740886247605,-501.74083165,0.00023803,2]
[355062821,1740886247615,-500.0,0.00023803,2]
[355062823,1740886247625,-500.0,0.00023803,2]
[355062825,1740886247635,-500.0,0.00023803,2]
[355062827,1740886247645,-500.0,0.00023803,2]
[355062829,1740886247655,-504.12596265,0.00023803,2]
[355062831,1740886247666,-500.0,0.00023803,2]
[355062833,1740886247675,-500.0,0.00023803,2]
[355062835,1740886247685,-500.0,0.00023803,2]
[355062837,1740886247694,-500.0,0.00023803,2]
[355062839,1740886247704,-500.0,0.00023803,2]
[355062841,1740886247713,-500.0,0.00023803,2]
[355062843,1740886247723,-500.0,0.00023803,2]